Cogmind - Beta 15 @@@ ROGUE MODE // 2025.07.22 @ 22:09:14 Player: the Result: Destroyed by as-05462 with Assembled F-torch Performance ------------- Evolutions (0) 0 Regions Visited (3) 600 Robots Destroyed (25) 125 Value Destroyed (331) 331 Prototype IDs (23) 460 Alien Tech Used (0) 0 Bonus (205) 205 TOTAL SCORE: 1721 Bonus ------- Aligned with FarCom 300 Friendly Fire -95 Cogmind --------- Core Integrity 0/250 Matter 285/300 Energy 100/100 System Corruption 3% Temperature Cool (50) Movement Core (1400) Ox27 Location -10/Exiles Parts ------- > --- POWER (1) -------- (None) > --- PROPULSION (2) --- (None) > --- UTILITY (2) ------ Huge Storage Unit > --- WEAPON (2) ------- Longsword +1 > --- INVENTORY (25) --- Ion Engine Light Ion Engine Light Nuclear Core Heat Sink Large Storage Unit High-capacity Storage Unit Large Matter Pod (150) Seismic Detector Medium Armor Plating Medium Armor Plating Medium Armor Plating Medium Armor Plating Medium Armor Plating Medium Armor Plating Tractor Beam Medium Laser Particle Cannon Particle Cannon Assault Rifle Grenade Launcher Mining Laser Peak State ------------ > --- POWER ------------ Ion Engine > --- PROPULSION ------- Wheel Wheel > --- UTILITY ---------- Huge Storage Unit Medium Armor Plating > --- WEAPON ----------- Grenade Launcher Longsword +1 > --- INVENTORY -------- Ion Engine Light Ion Engine Light Nuclear Core Heat Sink Large Storage Unit High-capacity Storage Unit Large Matter Pod Seismic Detector Medium Armor Plating Medium Armor Plating Medium Armor Plating Medium Armor Plating Medium Armor Plating Medium Armor Plating Medium Armor Plating Tractor Beam Medium Laser Particle Cannon Particle Cannon Assault Rifle Grenade Launcher Grenade Launcher Mining Laser [Rating: 18] Favorites ----------- Power Ion Engine Engine Ion Engine Propulsion Light Treads Treads Light Treads Wheel Wheel Utility Seismic Detector Device Seismic Detector Storage Huge Storage Unit Protection Medium Armor Plating Weapon Grenade Launcher Energy Cannon Particle Cannon Ballistic Gun Assault Rifle Launcher Grenade Launcher Special Weapon Mining Laser Slashing Weapon Longsword +1 Build | -11 -10 -10 -10 ------- Run | Yrd Mat Min Exi Slots Evolved . | . . . . Power . | . . . . Propulsion . | . . . . Utility . | . . . . Weapon . | . . . . Parts Attached 25 | 7 14 1 3 Power 3 | 1 2 . . Engine 3 | 1 2 . . Core . | . . . . Reactor . | . . . . Propulsion 5 | 2 2 1 . Treads 2 | 2 . . . Leg . | . . . . Wheel 3 | . 2 1 . Hover . | . . . . Flight . | . . . . Utility 8 | 2 5 . 1 Device 2 | 1 1 . . Storage 4 | 1 3 . . Processor . | . . . . Hackware . | . . . . Protection 2 | . 1 . 1 Artifact . | . . . . Weapon 9 | 2 5 . 2 Energy Gun . | . . . . Energy Cannon 2 | . 2 . . Ballistic Gun 2 | 2 . . . Ballistic Cannon . | . . . . Launcher 3 | . 2 . 1 Special Weapon 1 | . 1 . . Impact Weapon . | . . . . Slashing Weapon 1 | . . . 1 Piercing Weapon . | . . . . Special Melee Weapon . | . . . . Unidentified Prototypes . | . . . . Parts Lost 6 | . 1 . 5 Power 1 | . . . 1 Propulsion 2 | . . . 2 Utility 2 | . 1 . 1 Weapon 1 | . . . 1 Highest Loss Streak 5 | . 1 . 5 To Critical Strikes . | . . . . Average Backups 15 | 4 13 22 22 Power 1 | . 1 2 3 Propulsion 1 | 1 1 . . Utility 6 | . 4 13 12 Weapon 5 | 1 5 7 7 Tool/Special . | . . . . Unused Backups 18 | . 2 . 16 Power 3 | . 1 . 2 Propulsion 1 | . 1 . . Utility 10 | . . . 10 Weapon 4 | . . . 4 Tool/Special . | . . . . Average Slot Usage (%) 98 | . 98 100 93 Engine 13 | . 13 14 14 Treads 13 | . 18 . . Wheel 14 | . 8 28 28 Device 9 | . 13 . . Storage 14 | . 14 14 14 Protection 4 | . . 14 13 Energy Cannon 11 | . 16 . . Launcher 13 | . 9 28 16 Peak Build Rating 18 | 7 11 11 18 Average Rating 9 | 5 9 11 13 On Entrance 7 | . 7 11 11 Naked Turns . | . . . . Heaviest Build 98 | 12 98 98 98 Greatest Support 40 | 40 40 20 20 Greatest Overweight (x) 6 | . 6 4 4 Average Overweight (x) 2 | . 1 4 4 Largest Inventory Capacity 25 | 8 25 25 25 Average Capacity 18 | 7 16 25 25 Most Carried 23 | 7 22 23 23 Average Carried 15 | 4 13 22 22 Final Capacity 25 | 8 25 25 25 Final Carried 23 | 7 22 23 21 Class Distribution -------------------- 100% | Mutant Dominant Class ---------------- Mutant | -10/Materials Mutant | -10/Mines Mutant | -10/Exiles Resources | -11 -10 -10 -10 ----------- Run | Yrd Mat Min Exi Matter Collected 1054 | 318 360 266 110 Remotely . | . . . . Salvage Created 857 | 143 386 173 155 Parts 57 | 11 30 10 6 Haulers Intercepted 2 | . 2 . . Recyclers Shooed . | . . . . Parts Field Recycled . | . . . . Retrieved Matter . | . . . . Parts Self-Destructed . | . . . . Prevented . | . . . . Kills | -11 -10 -10 -10 ------- Run | Yrd Mat Min Exi Combat Hostiles Destroyed 22 | . 8 14 . Guns 3 | . 3 . . Cannons 5 | . 5 . . AOE 14 | . . 14 . Classes Destroyed 9 | 2 6 1 . Worker 1 | . 1 . . Builder 3 | . 1 2 . Tunneler 5 | 4 . 1 . Hauler 2 | . 2 . . Recycler 2 | 1 . 1 . Watcher 2 | . 2 . . Swarmer 6 | . 6 . . Grunt 4 | . 2 2 . Assembled 12 | . . 12 . Best Kill Streak 12 | 4 3 12 . Combat Bots Only 12 | . 3 12 . Max Kills in Single Turn 3 | 1 2 3 . Gunslinging . | . . . . Exploded 3 | . . 3 . Melee . | . . . . Uniques/NPCs Destroyed . | . . . . Combat | -11 -10 -10 -10 -------- Run | Yrd Mat Min Exi Hostile Shots Fired 70 | . 38 14 18 Missed 12 | . 5 5 2 Hits 58 | . 33 9 16 Melee 1 | . . . 1 Projectile 57 | . 33 9 15 Critical Strikes 1 | . . . 1 Part Disruptions 1 | . . . 1 Damage Taken 965 | . 312 217 436 Core 261 | . 81 30 150 Absorbed by Shields . | . . . . Core Remaining (%) 100 | 100 . . . Volleys Fired 70 | 12 40 16 2 Largest 2 | 2 2 2 1 Hottest 136 | 40 136 60 30 Shots Fired 124 | 24 73 25 2 Gun 44 | 24 20 . . Cannon 47 | . 47 . . Launcher 27 | . . 25 2 Special 6 | . 6 . . Kinetic 44 | 24 20 . . Thermal 53 | . 53 . . Explosive 27 | . . 25 2 Electromagnetic . | . . . . Robot Hit Streak 8 | 4 8 4 2 Robot Miss Streak 5 | 4 5 2 1 Penetration Max . | . . . . Secondary Targets . | . . . . Shots Hit Robots 58 | 13 36 4 5 Core Hits 56 | 6 15 33 2 Critical Kills . | . . . . Critical Parts Destroyed . | . . . . Critical Strikes . | . . . . Melee Attacks 4 | . . . 4 Impact . | . . . . Slashing 4 | . . . 4 Piercing . | . . . . Sneak Attacks . | . . . . Combat Hostiles . | . . . . Follow-up Attacks . | . . . . Damage Inflicted 2178 | 151 688 920 419 Guns 253 | 151 102 . . Cannons 586 | . 586 . . Explosions 968 | . . 920 48 Melee 371 | . . . 371 Ramming . | . . . . Kinetic 253 | 151 102 . . Thermal 586 | . 586 . . Explosive 968 | . . 920 48 Electromagnetic . | . . . . Impact . | . . . . Slashing 371 | . . . 371 Piercing . | . . . . Highest Corruption 2 | . 2 2 2 Average Corruption 2 | . 2 2 2 Corruption Purged . | . . . . Corruption Blocked . | . . . . Effects 23 | . 12 9 2 Message Errors 7 | . 3 4 . Matter Fused 3 | . 1 1 1 Heat Flow Errors 3 | . 2 1 . Energy Discharges 3 | . 2 . 1 Data Loss (minor) 5 | . 2 3 . Misfires 1 | . 1 . . Weapon Failures 1 | . 1 . . Overload Shots . | . . . . Overflow Damage 118 | . 1 43 74 Projectiles 1 | . 1 . . Explosions 57 | . . 43 14 Melee 60 | . . . 60 Knockbacks . | . . . . Impact . | . . . . Kinetic . | . . . . Secondary . | . . . . Self-Inflicted Damage 85 | . . 85 . Shots 3 | . . 3 . Rammed . | . . . . Targets Rammed . | . . . . Kicked . | . . . . Crushed . | . . . . Highest Temperature 403 | . 403 248 50 Average Temperature 101 | . 112 58 40 Received Heat Transfer 192 | . 72 . 120 Effects 2 | . 2 . . Energy Bleed 1 | . 1 . . Interference 1 | . 1 . . Siege Activations . | . . . . Martial Activations . | . . . . Shielding Activations . | . . . . Robots Disrupted . | . . . . Combat Hostiles . | . . . . Robots Corrupted . | . . . . Combat Hostiles . | . . . . Parts Fried . | . . . . Impact Corruptions . | . . . . Robots Melted . | . . . . Combat Hostiles . | . . . . Parts Melted 1 | . 1 . . Heat Transferred 1036 | . 1036 . . Parts Sabotaged . | . . . . Parts Stolen . | . . . . Parts Stripped . | . . . . Power Chain Reactions . | . . . . Alert | -11 -10 -10 -10 ------- Run | Yrd Mat Min Exi Maximum Alert Level . | . . . . Low Security (%) 100 | 100 100 100 . Level 1 . | . . . . Level 2 . | . . . . Level 3 . | . . . . Level 4 . | . . . . Level 5 . | . . . . High Security . | . . . . Max Security . | . . . . Peak Influence 94 | 15 92 94 . Initial . | . . . . Average 18 | 2 15 33 . Influence Increases 486 | 25 310 151 . Destroy 0b10 Robot/C 200 | . 160 40 . Destroy 0b10 Robot/NC 75 | 25 30 20 . Destroy Leader 48 | . 38 10 . Successful Hack 17 | . 17 . . Disable Machine 15 | . 15 . . Destroy Structure 86 | . 5 81 . Lose Combat Pursuer 45 | . 45 . . Influence Decreases 486 | 25 310 151 . Time Decay 486 | 25 310 151 . Squads Dispatched . | . . . . Investigation . | . . . . Extermination . | . . . . Reinforcement . | . . . . Assault . | . . . . Garrison . | . . . . Intercept . | . . . . Searches Triggered . | . . . . Construction Impeded . | . . . . Haulers Reinforced . | . . . . Active Scanning Responses . | . . . . Cargo Convoy Interrupts . | . . . . Stealth | -11 -10 -10 -10 --------- Run | Yrd Mat Min Exi Distress Signals 1 | . 1 . . Communications Jammed . | . . . . Distress Signals . | . . . . Times Spotted 44 | . 17 19 8 Peak Tracking Total 16 | . 4 16 13 Tactical Retreats 3 | . 2 1 . Traps | -11 -10 -10 -10 ------- Run | Yrd Mat Min Exi Traps Triggered 5 | . 5 . . Indirectly . | . . . . Trap Hack Attempts . | . . . . Triggered . | . . . . Disarmed . | . . . . Reprogrammed . | . . . . Reused . | . . . . Traps Extracted . | . . . . Installed . | . . . . Triggered . | . . . . Machines | -11 -10 -10 -10 ---------- Run | Yrd Mat Min Exi Machines Disabled 2 | . 1 . 1 Max in Single Turn 1 | . 1 . 1 Machines Repaired . | . . . . Machines Dismantled . | . . . . Machines Sabotaged . | . . . . Overloaded Fab Kills . | . . . . Hacking | -11 -10 -10 -10 --------- Run | Yrd Mat Min Exi Machines Accessed 9 | . 8 . 1 Terminals 7 | . 7 . . Fabricators . | . . . . Repair Stations 1 | . 1 . . Recycling Units . | . . . . Scanalyzers . | . . . . Garrison Access . | . . . . Total Hacks 25 | . 24 . 1 Successful 8 | . 7 . 1 Failed 17 | . 17 . . Catastrophic 2 | . 2 . . Database Lockouts . | . . . . Manual 12 | . 11 . 1 Terminals 21 | . 21 . . Fabricators . | . . . . Repair Stations 3 | . 3 . . Recycling Units . | . . . . Scanalyzers . | . . . . Garrison Access . | . . . . Terminal Hacks 7 | . 6 . 1 Part Schematic 1 | . 1 . . Robot Analysis 3 | . 3 . . Locate Traps 1 | . 1 . . Registered Components 1 | . 1 . . Proto ID Catalog 1 | . . . 1 Fabricator Hacks . | . . . . Repair Station Hacks . | . . . . Recycling Unit Hacks . | . . . . Scanalyzer . | . . . . Garrison Access Hacks . | . . . . Unauthorized Hacks 1 | . 1 . . Terminals 1 | . 1 . . Botnet 1 | . 1 . . Fabricators . | . . . . Repair Stations . | . . . . Recycling Units . | . . . . Scanalyzers . | . . . . Garrison Access . | . . . . Data Cores Recovered . | . . . . Used . | . . . . Hacking Detections 8 | . 8 . . Full Trace Events . | . . . . Feedback Events . | . . . . Feedback Blocked . | . . . . Robot Schematics Acquired . | . . . . Robots Built . | . . . . Authchips . | . . . . Time . | . . . . Total Robot Build Rating . | . . . . Part Schematics Acquired 1 | . 1 . . Parts Built . | . . . . Authchips . | . . . . Time . | . . . . Total Part Build Rating . | . . . . Parts Repaired . | . . . . Time . | . . . . Parts Recycled . | . . . . Recycled Matter . | . . . . Retrieved Matter . | . . . . Retrieved Components . | . . . . Parts Scanalyzed . | . . . . Part Schematics Acquired . | . . . . Parts Damaged . | . . . . Bothacking | -11 -10 -10 -10 ------------ Run | Yrd Mat Min Exi Used RIF Installer . | . . . . Robots Hacked . | . . . . Non-combat . | . . . . Combat . | . . . . Robot Hacks Applied . | . . . . Relay Couplers Released . | . . . . Fabnet Peak Effective % . | . . . . Robots Rewired . | . . . . Allies Hacked . | . . . . Hacks Repelled . | . . . . Allies | -11 -10 -10 -10 -------- Run | Yrd Mat Min Exi Total Allies . | . . . . Largest Group . | . . . . Highest-Rated Group . | . . . . Highest-Rated Ally . | . . . . Total Orders . | . . . . Ally Attacks . | . . . . Total Damage . | . . . . Kills . | . . . . Allies Corrupted . | . . . . Allies Melted . | . . . . Intel | -11 -10 -10 -10 ------- Run | Yrd Mat Min Exi Active Infowar (turns) 1946 | 22 1924 . . Seismic 1946 | 22 1924 . . Robot Analysis Total 3 | . 3 . . Derelict Logs Recovered 1 | . . 1 . Drone Launches . | . . . . Drone Recoveries . | . . . . Exploration | -11 -10 -10 -10 ------------- Run | Yrd Mat Min Exi Turns Passed 2913 | 120 1985 537 271 Spaces Moved 1722 | 48 1143 349 182 Core 7 | 6 1 . . Treads 728 | 42 686 . . Legs . | . . . . Wheels 987 | . 456 349 182 Hover . | . . . . Flight . | . . . . Fastest Speed 50 | 50 95 140 140 Average Speed 146 | 146 149 140 140 Slowest Speed 350 | 160 350 140 140 Overloaded Moves . | . . . . Propulsion Burnouts . | . . . . Robots Hopped . | . . . . Potential Cave-ins . | . . . . Cave-ins Triggered . | . . . . Exploration Rate (%) 58 | 4 98 76 55 Regions Visited 3 Branch Regions 2 Pre-discovered Areas 1 | . . 1 . Known Exits Taken . | . . . . Unknown Exits Taken 3 | 1 1 1 . Scrap Searched 1 | . . 1 . Spaces Dug 4 | . 4 . . Terrain Destroyed 126 | . 6 119 1 Melee . | . . . . Projectile 6 | . 6 . . AOE 120 | . . 119 1 Terrain Rammed . | . . . . Walls Destroyed . | . . . . Machines Disabled . | . . . . Actions | -11 -10 -10 -10 --------- Run | Yrd Mat Min Exi Total 1975 | 73 1336 372 194 Wait 104 | . 100 4 . Move 1719 | 47 1142 348 182 Hop . | . . . . Pick Up 27 | 7 19 1 . Fast Attach 20 | 7 11 1 1 Attach 7 | . 5 . 2 Detach 1 | . 1 . . Swap 9 | . 8 1 . Drop 14 | . 10 1 3 Fire 70 | 12 40 16 2 Melee 4 | . . . 4 Ram . | . . . . Kick . | . . . . Crush . | . . . . Escape Stasis . | . . . . Rewire . | . . . . Trap . | . . . . Miscellaneous . | . . . . Route ------- -11/Scrapyard -10/Materials (discovered 5 exits: [*Mat x3] / [*Min] / [*Sub]) -10/Mines (discovered 2 exits: [*Mat] / *Exi) -10/Exiles History --------- Turn | Location | Event 11 | -11/Scrapyard | Discovered new exit (range 15) 121 | -11/Scrapyard | Entered Materials 316 | -10/Materials | Build established: Mutant 460 | -10/Materials | Discovered new exit (range 7) 487 | -10/Materials | Discovered new exit (range 10) 554 | -10/Materials | Discovered new exit (range 10) 791 | -10/Materials | Discovered new exit (range 4) 927 | -10/Materials | Discovered new exit (range 10) 2106 | -10/Materials | Entered Mines 2120 | -10/Mines | Discovered new exit (range 16) 2149 | -10/Mines | Assembled infested the area 2209 | -10/Mines | Destroyed 12 combat bots 2593 | -10/Mines | Learned Materials interactive machine intel 2611 | -10/Mines | Learned location of Storage (-9) 2636 | -10/Mines | Deemed a non-threat by the Exiles lab entrance 2638 | -10/Mines | Discovered new exit (range 5) 2643 | -10/Mines | Entered Exiles 2677 | -10/Exiles | Met 8R-AWN 2702 | -10/Exiles | Met EX-HEX 2739 | -10/Exiles | Met EX-BIN 2755 | -10/Exiles | Aligned with FarCom system 2757 | -10/Exiles | Given EX-Vault access code 2789 | -10/Exiles | Opened EX-Vault 2799 | -10/Exiles | Found Longsword +1 2828 | -10/Exiles | Warned to stay clear of 0b10 Research branches 2867 | -10/Exiles | Met EX-DEC 2895 | -10/Exiles | Attacked by the Exiles 2910 | -10/Exiles | Core integrity fell below 50% 2914 | -10/Exiles | Destroyed by as-05462 with Assembled F-torch Last Messages --------------- 02899_ Sneak attack on A-02 Transporter. 02899_ A-02 Transporter destroyed. 02901_ Sneak attack on A-02 Transporter. 02903_ Destroyed Lgt. Treads. 02903_ A-02 Transporter destroyed. 02905_ Acquired 60 matter. 02906_ Knocked back. 02908_ Med. Armor Plating destroyed. 02910_ Wheel destroyed. 02910_ Knocked back. 02911_ EX-BIN: "I just want to science!" 02911_ Critical hit (Burn: +80). 02912_ Ion Engine destroyed. 02912_ Wheel destroyed. 02912_ Knocked back. 02912_ Machine disabled. 02913_ Destroyed Adv. Component Analysis Suite. 02914_ Grenade Launcher destroyed. 02914_ System corrupted by crushing effect (+1). 02914_ Knocked back. Map ----- +----------------------------------------------------+ | ????????????????????????????## """"???? | | ?????????????????????????????# """#???? | | ?????????????????????????????#" "X" """"???? | | ?????????????????????????????#" """ #???? | | ??????????????? ?????????????#" """""""""#???? | | ???????????????" ???????????##" ###########???? | | ???????????????# ?????????##"" #?????????????? | | ?????????????### ##??######"" #?????????????? | | ?????????#####X# #"###""""""" ##????????????? | | ????????? """""" " "" ##???######### | | ???????? "" """ " #####"""""""" | | ???????? " " " """ "" | | ??????? "" " | | ??????? " | | ?????? | | ??????# | | ???????#" | | ???????#""" """""" | | ???????#" ######""" | | ???????"" ""##????#####""" | | ???????""" """##?????????##""" | | ??????""" """##???????????#"""" | | ??????""" ""#????????????#"" | | ??????"" ########???????""" | | ??????""" ##*a!####""" | | ?????#"" t @ a%*""" | | ??????#"" aaa a | | ??????#"""" c % % a | | ???????# " | | ???????#" " "" """ | | ???????#"""" ""## ##""" " " ""#" | | ???????#"" c ""###? #??##??"" "??##"" | | ????????" """"##???? #?????????????### | | ????????""" """#????? #???????????????? | | ???????## ""##?????? ???????????????? | | ????????#"" """##??????? ??????????????? | | ????????##""" ##????????? ??????????????? | | ??????????#"""" ##?????????????????????????? | | ????????????? #??????????????????????????? | | ?????????????#### #???????????????????????????? | | ????????????????## ????????????????????????????? | | ?????????????????? ????????????????????????????? | | ?????????????????????????????????????????????????? | | ?????????????????????????????????????????????????? | | ?????????????????????????????????????????????????? | | ?????????????????????????????????????????????????? | | ?????????????????????????????????????????????????? | | ?????????????????????????????????????????????????? | | ?????????????????????????????????????????????????? | | ?????????????????????????????????????????????????? | +----------------------------------------------------+ Best States ------------- Heat Dissipation 25 Energy Generation 10 Energy Capacity 250 Matter Stores 300 Matter Capacity 300 Sight Range 16 Terrain Scan Density 10 Armor Coverage 225 Evasion (%) 41 Recoil Reduction 2 Item Schematics ----------------- Hcp. Storage Unit | -10/Materials | Hacked Robot Schematics ------------------ None Fabricated ------------ Nothing Repaired ---------- Nothing Alien Tech Used ----------------- None Achievements -------------- None Challenges ------------ None Game ------ Seed OpticalDisposableRouter Manual? 0 Play Time 00:22:13 Cumulative 197.1 hours Start 2025.07.22 @ 21:49:06 End 2025.07.22 @ 22:09:14 Sessions 1 Manual Loads 0 Difficulty Rogue Special Mode None Game No. 139 Rogue 139 Adventurer 0 Explorer 0 Win Type - Total 2 Types 2/0/0/0/0/0/0/0/0/0 Lore% 63 Gallery% 58 Achievement% 51 Wizard Run 0 Options --------- Layout 1 ASCII 0 Keyboard 0 Movement Mouse Keybinds 0 Fullscreen 1 Font 32/SmallcapsGlow Map View 50x35 Zoom Use 0% Tactical HUD 1 Map Filters NONE Filters NONE Steam 1 RUN: 2ca3ac77-b76b-4e31-8939-68469042fb24